fUST/lending_fUST_20241121
["ID","MTS","AMOUNT","RATE_DAILY","PERIOD"]
[342825129,1732160888291,-151.0,0.00022191,7]
[342825130,1732160888316,-517.96243242,0.00022191,2]
[342825131,1732160888341,-500.0,0.00022191,2]
[342825132,1732160888477,-492.09029992,0.00022191,2]
[342825133,1732160888503,-500.0,0.00022191,2]
[342825134,1732160888530,-506.97806212,0.00022191,2]
[342825135,1732160888556,-500.0,0.00022191,2]
[342825136,1732160888584,-500.0,0.00022191,2]
[342825137,1732160888611,-151.0,0.00022191,7]
[342825138,1732160888636,-151.0,0.00022191,7]
[342825139,1732160888665,-500.0,0.00022191,2]
[342825140,1732160888693,-522.59110142,0.00022191,2]
[342825141,1732160888720,-500.0,0.00022191,2]
[342825142,1732160888745,-151.0,0.00022191,7]
[342825143,1732160888772,-500.0,0.00022191,2]
[342825144,1732160888799,-500.0,0.00022191,2]
[342825145,1732160888824,-500.0,0.00022191,2]
[342825146,1732160888850,-500.0,0.00022191,2]
[342825147,1732160888876,-500.0,0.00022191,2]
[342825148,1732160888902,-151.31891575,0.00022191,2]
[342825149,1732160888938,-622.81543609,0.00022191,2]
[342825150,1732160888963,-508.08013105,0.00022191,2]
[342825151,1732160888990,-500.0,0.00022191,2]
[342825152,1732160889016,-516.2128545,0.00022191,2]
[342825153,1732160889042,-500.0,0.00022191,2]
[342825154,1732160889067,-205.497498,0.00022191,7]
[342825155,1732160889092,-467.37961897,0.00022191,2]
[342825156,1732160889118,-205.497498,0.00022191,7]
[342825157,1732160889146,-1992.03,0.00022191,2]
[342825158,1732160889177,-3245.14,0.00022191,2]
[342825159,1732160889203,-581.3248403,0.00022191,2]
[342825160,1732160889228,-500.0,0.00022191,2]
[342825161,1732160889254,-500.0,0.00022191,2]
[342825162,1732160889280,-534.35014482,0.00022191,2]
[342825163,1732160889306,-500.0,0.00022191,2]
[342825164,1732160889331,-500.0,0.00022191,2]
[342825165,1732160889356,-515.87780406,0.00022191,2]
[342825166,1732160889382,-167.05006021,0.00022191,2]
[342825167,1732160889421,-500.0,0.00022191,2]
[342825168,1732160889451,-429.0,0.00022192,2]
[342825169,1732160889481,-500.0,0.00022219,2]
[342825170,1732160889507,-321.83047146,0.00022219,2]
[342825171,1732160889534,-341.48804555,0.00022219,2]
[342825172,1732160889562,-500.0,0.00022219,2]
[342825173,1732160889592,-629.76734495,0.00022219,2]
[342825174,1732160889633,-500.0,0.00022219,2]
[342825175,1732160889672,-561.80969281,0.00022219,2]
[342825176,1732160889705,-306.6855605,0.00022301,2]
[342825177,1732160889740,-455.81483469,0.00022333,2]
[342825178,1732160889774,-9309.16877842,0.00022333,2]
[342825179,1732160889807,-587.0,0.00022358,2]
[342825180,1732160889840,-866.35181993,0.0002238,2]
[342825181,1732160889873,-151.0,0.00022382,7]
[342825182,1732160889905,-388.06,0.0002246,3]
[342825183,1732160889937,-388.06,0.0002246,3]
[342825184,1732160889967,-500.0,0.00022463,2]
[342825185,1732160889999,-504.09961582,0.00022464,2]
[342825186,1732160890029,-505.79700862,0.00022464,2]
[342825187,1732160890058,-503.53268096,0.00022464,2]
[342825188,1732160890088,-526.07212243,0.00022464,2]
[342825189,1732160890118,-503.39074763,0.00022464,2]
[342825190,1732160890149,-500.0,0.00022464,2]
[342825191,1732160890180,-500.0,0.00022464,2]
[342825192,1732160890212,-500.0,0.00022464,2]
[342825193,1732160890243,-500.0,0.00022464,2]
[342825194,1732160890274,-500.0,0.00022464,2]
[342825195,1732160890302,-500.0,0.00022464,2]
[342825196,1732160890329,-151.0,0.00022464,7]
[342825197,1732160890360,-151.0,0.00022464,7]
[342825198,1732160890391,-500.0,0.00022464,2]
[342825199,1732160890420,-207.878073,0.00022464,7]
[342825200,1732160890450,-388.55445889,0.00022464,2]
[342825201,1732160890480,-151.0,0.00022464,7]
[342825202,1732160890509,-151.0,0.00022464,7]
[342825203,1732160890536,-500.0,0.00022464,2]
[342825204,1732160890564,-192.41291146,0.00022464,2]
[342825205,1732160890596,-151.0,0.00022464,7]
[342825206,1732160890628,-501.85943524,0.00022464,2]
[342825207,1732160890658,-500.0,0.00022464,2]
[342825208,1732160890692,-503.90221414,0.00022464,2]
[342825209,1732160890721,-501.85635105,0.00022464,2]
[342825210,1732160890751,-500.0,0.00022464,2]
[342825211,1732160890780,-500.0,0.00022464,2]
[342825212,1732160890809,-504.61751091,0.00022464,2]
[342825213,1732160890837,-500.0,0.00022464,2]
[342825214,1732160890865,-205.497498,0.00022464,7]
[342825215,1732160891020,-500.0,0.00022464,2]
[342825216,1732160891047,-205.497498,0.00022464,7]
[342825217,1732160891071,-502.32128642,0.00022464,2]
[342825218,1732160891096,-500.0,0.00022465,2]
[342825219,1732160891122,-897.12,0.00022465,2]
[342825220,1732160891147,-500.0,0.00022465,2]
[342825221,1732160891176,-500.0,0.00022465,2]
[342825222,1732160891204,-1024.92,0.00022465,2]
[342825223,1732160891231,-500.0,0.00022465,2]
[342825224,1732160891259,-500.0,0.00022465,2]
[342825225,1732160891286,-500.0,0.00022465,2]
[342825226,1732160891313,-505.09081499,0.00022465,2]
[342825227,1732160891338,-500.0,0.00022465,2]
[342825228,1732160891364,-513.06775411,0.00022465,2]
[342825229,1732160891389,-629.84774217,0.00022465,2]
[342825230,1732160891416,-500.0,0.00022465,2]
[342825231,1732160891446,-1992.03,0.00022465,2]
[342825232,1732160891473,-3245.14,0.00022465,2]
[342825233,1732160891499,-343.33025118,0.00022465,2]
[342825234,1732160891525,-509.12238836,0.00022465,2]
[342825235,1732160891553,-500.0,0.00022465,2]
[342825236,1732160891579,-506.35897955,0.00022465,2]
[342825237,1732160891609,-196.32562812,0.00022465,2]
[342825238,1732160891633,-1000.0,0.000226,2]
[342825239,1732160891659,-500.0,0.000226,2]
[342825240,1732160891686,-151.0,0.00022624,7]
[342825241,1732160891710,-175.519928,0.00022624,7]
[342825242,1732160891735,-151.0,0.00022624,7]
[342825243,1732160891760,-151.0,0.00022624,7]
[342825244,1732160891785,-151.0,0.00022624,7]
[342825245,1732160891810,-151.0,0.00022624,7]
[342825246,1732160891835,-205.497498,0.00022624,7]
[342825247,1732160891860,-205.497498,0.00022624,7]
[342825248,1732160891886,-26452.24286639,0.00022624,2]
[342825249,1732160891911,-866.35181993,0.00022673,2]
[342825250,1732160891940,-1023.4149086,0.00022673,2]
[342825251,1732160891967,-9309.16877843,0.00022692,2]
[342825252,1732160891993,-519.71266661,0.00022737,2]
[342825253,1732160892019,-522.01637753,0.00022738,2]
[342825254,1732160892044,-174.85016186,0.00022738,2]
[342825255,1732160892070,-500.0,0.00022738,2]
[342825256,1732160892095,-500.0,0.00022738,2]
[342825257,1732160892122,-500.0,0.00022738,2]
[342825258,1732160892148,-500.0,0.00022738,2]
[342825259,1732160892175,-432.92133302,0.00022738,2]
[342825260,1732160892200,-513.23476186,0.00022738,2]
[342825261,1732160892226,-500.0,0.00022738,2]
[342825262,1732160892252,-500.0,0.00022739,2]
[342825263,1732160892280,-897.12,0.00022739,2]
[342825264,1732160892307,-500.0,0.00022739,2]
[342825265,1732160892333,-500.0,0.00022739,2]
[342825266,1732160892361,-1024.92,0.00022739,2]
[342825267,1732160892387,-159.3733065,0.00022739,2]
[342825268,1732160892413,-299.95136774,0.00022739,2]
[342825269,1732160892442,-584.50371112,0.00022739,2]
[342825270,1732160892467,-500.0,0.00022739,2]
[342825271,1732160892493,-500.0,0.00022739,2]
[342825272,1732160892520,-1992.03,0.00022739,2]
[342825273,1732160892547,-3245.14,0.00022739,2]
[342825274,1732160892574,-500.0,0.00022739,2]
[342825275,1732160892608,-151.0,0.0002275,7]
[342825276,1732160892639,-151.0,0.0002275,7]
[342825277,1732160892669,-151.0,0.0002275,7]
[342825278,1732160892701,-226.429429,0.0002275,7]
[342825279,1732160892728,-243.317333,0.0002275,7]
[342825280,1732160892755,-205.497498,0.0002275,7]
[342825281,1732160892781,-205.497498,0.0002275,7]
[342825282,1732160892807,-250000.0,0.0002275,2]
[342825283,1732160892833,-1000.0,0.00022767,2]
[342825284,1732160892860,-434.78931936,0.00022767,2]
[342825285,1732160892887,-1000.0,0.00022767,2]
[342825286,1732160892912,-500.20116645,0.00022773,2]
[342825287,1732160892945,-500.0,0.00022773,2]
[342825288,1732160892974,-500.0,0.00022773,2]
[342825289,1732160893008,-500.0,0.00022773,2]
[342825290,1732160893035,-500.0,0.00022773,2]
[342825291,1732160893062,-162.86388162,0.00022773,2]
[342825292,1732160893087,-515.55310539,0.00022773,2]
[342825293,1732160893113,-501.0799261,0.00022773,2]
[342825294,1732160893226,-337.32145542,0.00022773,2]
[342825295,1732160893252,-500.64924646,0.00022773,2]
[342825296,1732160893277,-533.49513438,0.00022773,2]
[342825297,1732160893302,-504.97260092,0.00022849,2]
[342825298,1732160893328,-516.36746153,0.00022849,2]
[342825299,1732160893354,-500.0,0.00022849,2]
[342825300,1732160893379,-526.81319062,0.00022849,2]
[342825301,1732160893405,-512.77551411,0.00022849,2]
[342825302,1732160893433,-383.83098877,0.00022849,2]
[342825303,1732160893458,-517.79,0.00022849,2]
[342825304,1732160893484,-500.0,0.00022849,2]
[342825305,1732160893510,-500.0,0.00022849,2]
[342825306,1732160893536,-151.0,0.0002285,7]
[342825307,1732160893561,-151.0,0.0002285,7]
[342825308,1732160893589,-3000.0,0.00023,2]
[342825309,1732160893616,-3596.37853544,0.00023,2]
[342825310,1732160893642,-3596.37853542,0.00023,2]
[342825311,1732160893666,-3596.37853542,0.00023,2]
[342825312,1732160893693,-3596.37853542,0.00023,2]
[342825313,1732160893718,-168.629623,0.00023,7]
[342825314,1732160893743,-288.616678,0.00023,7]
[342825315,1732160893774,-151.0,0.00023,7]
[342825316,1732160893801,-151.0,0.00023,7]
[342825317,1732160893826,-205.497498,0.00023,7]
[342825318,1732160893850,-205.497498,0.00023,7]
[342825319,1732160893877,-3000.0,0.0002301,2]
[342825320,1732160893903,-151.0,0.00023012,7]
[342825321,1732160893932,-500.0,0.00023012,2]
[342825322,1732160893957,-500.0,0.00023013,2]
[342825323,1732160893984,-897.12,0.00023013,2]
[342825324,1732160894011,-500.0,0.00023013,2]
[342825325,1732160894037,-500.0,0.00023013,2]
[342825326,1732160894066,-1024.92,0.00023013,2]
[342825327,1732160894092,-500.0,0.00023013,2]
[342825328,1732160894120,-1992.03,0.00023013,2]
[342825329,1732160894147,-3245.14,0.00023013,2]
[342825330,1732160894173,-171.26,0.00023013,2]
[342825331,1732160894201,-429.0,0.00023014,2]
[342825332,1732160894226,-161.0,0.00023014,2]
[342825333,1732160894251,-1515.01536588,0.00023017,2]
[342825334,1732160894276,-500.0,0.00023018,2]
[342825335,1732160894300,-505.94419279,0.00023018,2]
[342825336,1732160894326,-500.0,0.00023018,2]
[342825337,1732160894351,-205.67968663,0.00023018,2]
[342825338,1732160894377,-3000.0,0.0002302,2]
[342825339,1732160894402,-3000.0,0.0002303,2]
[342825340,1732160894430,-3000.0,0.0002304,2]
[342825341,1732160894455,-205.497498,0.0002304,7]
[342825342,1732160894479,-205.497503,0.0002304,7]
[342825343,1732160894504,-3000.0,0.0002305,2]
[342825344,1732160894529,-151.0,0.0002305,7]
[342825345,1732160894553,-151.0,0.0002305,7]
[342825346,1732160894577,-4625.094003,0.0002306,2]
[342825347,1732160894607,-151.691151,0.0002306,7]
[342825348,1732160894631,-1000.0,0.000231,2]
[342825349,1732160894658,-500.0,0.00023123,2]
[342825350,1732160894686,-151.0,0.00023186,7]
[342825351,1732160894710,-526.3711,0.00023207,15]
[342825352,1732160894735,-500.0,0.00023287,2]
[342825353,1732160894761,-897.12,0.00023287,2]
[342825354,1732160894786,-500.0,0.00023287,2]
[342825355,1732160894811,-500.0,0.00023287,2]
[342825356,1732160894835,-500.0,0.00023287,2]
[342825357,1732160894862,-1024.92,0.00023287,2]
[342825358,1732160894888,-498.35417467,0.00023287,2]
[342825359,1732160894914,-1992.03,0.00023287,2]
[342825360,1732160894942,-3245.14,0.00023287,2]
[342825361,1732160894973,-439.4008145,0.00023288,2]
[342825362,1732160894999,-307.46068,0.00023288,2]
[342825363,1732160895025,-157.366327,0.00023288,2]
[342825364,1732160895050,-153.0,0.00023288,2]
[342825365,1732160895076,-212.5677706,0.00023288,2]
[342825366,1732160895106,-212.5677706,0.00023288,2]
[342825367,1732160895132,-153.0,0.00023288,2]
[342825368,1732160895160,-212.5677706,0.00023288,2]
[342825369,1732160895186,-304.475979,0.00023288,2]
[342825370,1732160895210,-212.5677706,0.00023288,2]
[342825371,1732160895235,-212.5677706,0.00023288,2]
[342825372,1732160895260,-424.4542557,0.00023288,2]
[342825373,1732160895285,-1000.0,0.00023321,2]
[342825374,1732160895400,-1000.0,0.00023321,2]
[342825375,1732160895428,-1023.41490856,0.0002337,2]
[342825376,1732160895454,-562.23547314,0.00023397,2]
[342825379,1732160895479,-14385.51414171,0.000234,2]
[342825381,1732160895505,-14385.5141417,0.00023464,2]
[342825383,1732160895531,-151.0,0.00023464,7]
[342825385,1732160895556,-500.0,0.00023561,2]
[342825387,1732160895585,-897.12,0.00023561,2]
[342825389,1732160895614,-500.0,0.00023561,2]
[342825391,1732160895639,-500.0,0.00023561,2]
[342825393,1732160895667,-1024.92,0.00023561,2]
[342825395,1732160895695,-1992.03,0.00023561,2]
[342825397,1732160895721,-3245.14,0.00023561,2]
[342825399,1732160895747,-152.64729159,0.00023707,2]
[342825401,1732160895771,-150.19215167,0.00023707,2]
[342825403,1732160895798,-153.06722789,0.00023707,2]
[342825405,1732160895823,-180.81920586,0.00023758,2]
[342825407,1732160895849,-453.67985391,0.00023764,2]
[342825409,1732160895873,-1500.0,0.00023769,2]
[342825411,1732160895900,-1114.56989946,0.00023769,2]
[342825413,1732160895927,-185.354,0.00023815,5]
[342825415,1732160895952,-250.41859474,0.00023835,2]
[342825418,1732160895979,-897.12,0.00023835,2]
[342825420,1732160896005,-162.81,0.00023835,2]
[342825422,1732160896036,-507.00445566,0.00023835,2]
[342825424,1732160896062,-1024.92,0.00023835,2]
[342825426,1732160896088,-1992.03,0.00023835,2]
[342825428,1732160896115,-3245.14,0.00023835,2]
[342825430,1732160896139,-150.342,0.00023837,2]
[342825432,1732160896166,-183.008,0.00023837,2]
[342825434,1732160896194,-532.293,0.00023837,2]
[342825436,1732160896219,-1106.0,0.00023837,2]
[342825438,1732160896244,-2382.0,0.00023837,2]
[342825440,1732160896270,-151.0,0.00023918,7]
[342825442,1732160896295,-14385.5141417,0.00023918,2]
[342825444,1732160896321,-151.19445116,0.00023981,2]
[342825446,1732160896346,-1023.41490856,0.00024067,2]
[342825447,1732160896374,-897.12,0.00024109,2]
[342825448,1732160896401,-1024.92,0.00024109,2]
[342825449,1732160896430,-1992.03,0.00024109,2]
[342825450,1732160896457,-3245.14,0.00024109,2]
[342825451,1732160896482,-309.1298006,0.0002411,2]
[342825452,1732160896507,-434.0,0.00024164,2]
[342825453,1732160896532,-158.5,0.0002419,4]
[342825454,1732160896557,-153.0,0.00024247,2]
[342825455,1732160896583,-153.0,0.00024247,2]
[342825456,1732160896609,-151.03361564,0.00024255,2]
[342825458,1732160896635,-1500.0,0.00024322,2]
[342825459,1732160896661,-1500.0,0.00024322,2]
[342825462,1732160896690,-823.0,0.00024374,2]
[342825464,1732160896716,-897.12,0.00024383,2]
[342825466,1732160896743,-1024.92,0.00024383,2]
[342825468,1732160896769,-1992.03,0.00024383,2]
[342825470,1732160896798,-3245.14,0.00024383,2]
[342825472,1732160896824,-750.0,0.000245,2]
[342825474,1732160896849,-150.99278383,0.00024529,2]
[342825476,1732160896876,-158.5,0.00024629,4]
[342825478,1732160896904,-897.12,0.00024657,2]
[342825480,1732160896932,-500.0,0.00024657,4]
[342825482,1732160896960,-1024.92,0.00024657,2]
[342825484,1732160896987,-1992.03,0.00024657,2]
[342825487,1732160897014,-3245.14,0.00024657,2]
[342825489,1732160897040,-1023.41490856,0.00024763,2]
[342825491,1732160897067,-151.0,0.0002493,7]
[342825493,1732160897100,-897.12,0.00024931,2]
[342825495,1732160897128,-1024.92,0.00024931,2]
[342825497,1732160897155,-1992.03,0.00024931,2]
[342825499,1732160897185,-3245.14,0.00024931,2]
[342825501,1732160897210,-317.1839927,0.00024952,2]
[342825503,1732160897236,-200.0,0.00025,6]
[342825504,1732160897261,-5013.63336355,0.00025,2]
[342825505,1732160897287,-1253.58049668,0.00025,2]
[342825506,1732160897314,-2114.68614482,0.00025,2]
[342825507,1732160897340,-277.0,0.00025,2]
[342825508,1732160897367,-507.228967,0.00025,17]
[342825509,1732160897394,-303.2789918,0.00025,2]
[342825510,1732160897419,-2000.0,0.00025067,2]
[342825511,1732160897446,-158.5,0.00025067,5]
[342825512,1732160897471,-150.078,0.00025086,2]
[342825514,1732160897590,-300.0,0.000251,2]
[342825515,1732160897618,-897.12,0.00025205,2]
[342825516,1732160897646,-1024.92,0.00025205,2]
[342825517,1732160897672,-1992.03,0.00025205,2]
[342825519,1732160897701,-3245.14,0.00025205,2]
[342825520,1732160897727,-153.0,0.00025205,2]
[342825521,1732160897752,-303.2789918,0.0002525,2]
[342825522,1732160897777,-304.47004008,0.00025255,3]
[342825523,1732160897803,-316.75,0.000253,2]
[342825524,1732160897828,-153.0,0.00025431,2]
[342825525,1732160897854,-153.0,0.00025431,2]
[342825527,1732160897881,-153.0,0.00025435,2]
[342825528,1732160897906,-153.0,0.00025438,2]
[342825529,1732160897934,-1023.41490856,0.0002546,2]
[342825530,1732160897960,-151.0,0.00025479,7]
[342825531,1732160897988,-897.12,0.00025479,2]
[342825532,1732160898014,-1024.92,0.00025479,2]
[342825534,1732160898041,-1992.03,0.00025479,2]
[342825536,1732160898068,-3245.14,0.00025479,2]
[342825537,1732160898093,-303.2789918,0.000255,2]
[342825538,1732160898118,-158.5,0.00025506,5]
[342825539,1732160898143,-200.0,0.000256,7]
[342825540,1732160898169,-2000.0,0.0002562,2]
[342825541,1732160898196,-2003.61495218,0.0002562,2]
[342825542,1732160898222,-160.0,0.00025673,3]
[342825543,1732160898248,-303.2789918,0.0002575,2]
[342825544,1732160898276,-897.12,0.00025753,2]
[342825545,1732160898304,-1024.92,0.00025753,2]
[342825546,1732160898333,-1992.03,0.00025753,2]
[342825547,1732160898361,-3245.14,0.00025753,2]
[342825548,1732160898388,-500.49201264,0.00025767,2]
[342825549,1732160898417,-500.88431557,0.00025767,2]
[342825550,1732160898445,-500.24860742,0.00025767,2]
[342825551,1732160898473,-500.51314669,0.00025767,2]
[342825552,1732160898499,-306.05490632,0.00025767,2]
[342825553,1732160898525,-500.0,0.00025767,2]
[342825554,1732160898552,-258.83774374,0.00025767,2]
[342825555,1732160898577,-500.0,0.00025767,2]
[342825556,1732160898606,-429.0,0.00025775,2]
[342825557,1732160898632,-158.5,0.00025945,5]
[342825558,1732160898657,-500.22068397,0.00025967,2]
[342825559,1732160898684,-1464.81,0.00026,14]
[342825560,1732160898711,-31158.80452004,0.00026,30]
[342825561,1732160898735,-303.2789918,0.00026,2]
[342825562,1732160898763,-897.12,0.00026027,2]
[342825563,1732160898788,-500.0,0.00026027,6]
[342825564,1732160898815,-1024.92,0.00026027,2]
[342825565,1732160898842,-1992.03,0.00026027,2]
[342825566,1732160898868,-3245.14,0.00026027,2]
[342825567,1732160898893,-500.0,0.00026067,2]
[342825568,1732160898919,-300.0,0.000261,2]
[342825569,1732160898950,-1023.41490856,0.00026157,2]
[342825570,1732160898975,-150.09305,0.000262,2]
[342825571,1732160899000,-310.35919963,0.000262,2]
[342825572,1732160899029,-500.0,0.00026229,2]
[342825573,1732160899055,-500.0,0.00026231,2]
[342825574,1732160899080,-500.0,0.00026231,2]
[342825575,1732160899107,-454.91848771,0.0002625,4]
[342825576,1732160899133,-897.12,0.00026301,2]
[342825577,1732160899165,-1024.92,0.00026301,2]
[342825578,1732160899195,-1992.03,0.00026301,2]
[342825579,1732160899222,-3245.14,0.00026301,2]
[342825580,1732160899247,-509.37507557,0.00026315,2]
[342825581,1732160899275,-1000.0,0.00026315,2]
[342825582,1732160899301,-158.5,0.00026383,6]
[342825583,1732160899327,-500.0,0.0002645,2]
[342825584,1732160899353,-500.0,0.0002645,2]
[342825585,1732160899378,-500.0,0.0002645,2]
[342825586,1732160899404,-305.1425465,0.000265,4]
[342825587,1732160899433,-320.47863727,0.00026543,2]
[342825588,1732160899460,-607.12717306,0.00026543,2]
[342825589,1732160899485,-508.38860964,0.00026543,2]
[342825590,1732160899511,-413.0,0.00026573,2]
[342825591,1732160899537,-897.12,0.00026575,2]
[342825592,1732160899564,-1024.92,0.00026575,2]
[342825593,1732160899592,-1992.03,0.00026575,2]
[342825594,1732160899619,-3245.14,0.00026575,2]
[342825595,1732160899732,-2500.0,0.00026603,2]
[342825596,1732160899758,-1000.0,0.00026615,2]
[342825597,1732160899783,-504.15232701,0.00026777,2]
[342825598,1732160899808,-1000.0,0.00026779,2]
[342825599,1732160899834,-1000.0,0.00026779,2]
[342825600,1732160899861,-158.5,0.00026822,6]
[342825601,1732160899887,-546.111,0.00026837,2]
[342825602,1732160899914,-151.483,0.00026837,2]
[342825603,1732160899945,-897.12,0.00026849,2]
[342825604,1732160899972,-1024.92,0.00026849,2]
[342825605,1732160899999,-1992.03,0.00026849,2]
[342825606,1732160900024,-3245.14,0.00026849,2]
[342825607,1732160900049,-1023.41490856,0.00026854,2]
[342825608,1732160900074,-500.0,0.00026983,2]
[342825609,1732160900100,-2158.381781,0.00026994,2]
[342825610,1732160900126,-2633.827947,0.00026994,2]
[342825611,1732160900151,-171.657385,0.00026994,2]
[342825612,1732160900175,-1057.56676096,0.00026998,2]
[342825613,1732160900204,-1000.0,0.00026998,2]
[342825614,1732160900230,-200.0,0.00027,120]
[342825615,1732160900255,-1000.0,0.00027023,2]
[342825616,1732160900281,-300.0,0.000271,2]
[342825617,1732160900308,-897.12,0.00027123,2]
[342825618,1732160900335,-1024.92,0.00027123,2]
[342825619,1732160900362,-1992.03,0.00027123,2]
[342825620,1732160900389,-3245.14,0.00027123,2]
[342825621,1732160900415,-2500.0,0.00027156,2]
[342825622,1732160900443,-158.5,0.0002726,6]
[342825623,1732160900470,-2576.04,0.00027289,30]
[342825624,1732160900496,-1500.0,0.00027316,2]
[342825625,1732160900521,-2158.381781,0.00027332,2]
[342825626,1732160900546,-2633.827947,0.00027332,2]
[342825627,1732160900571,-429.0,0.00027386,2]
[342825628,1732160900597,-211.77848084,0.00027397,2]
[342825629,1732160900622,-1000.0,0.00027397,2]
[342825630,1732160900649,-169.76906025,0.00027397,2]
[342825631,1732160900675,-897.12,0.00027397,2]
[342825632,1732160900702,-500.0,0.00027397,8]
[342825633,1732160900727,-500.0,0.00027397,2]
[342825634,1732160900751,-500.0,0.00027397,2]
[342825635,1732160900777,-500.0,0.00027397,2]
[342825636,1732160900801,-500.0,0.00027397,2]
[342825637,1732160900826,-500.0,0.00027397,2]
[342825638,1732160900851,-500.0,0.00027397,2]
[342825639,1732160900876,-500.0,0.00027397,2]
[342825640,1732160900902,-579.4739891,0.00027397,2]
[342825641,1732160900929,-1024.92,0.00027397,2]
[342825642,1732160900954,-500.0,0.00027397,2]
[342825643,1732160900979,-584.14071395,0.00027397,2]
[342825644,1732160901014,-512.70135459,0.00027397,2]
[342825646,1732160901051,-1992.03,0.00027397,2]
[342825647,1732160901085,-3245.14,0.00027397,2]
[342825648,1732160901118,-186.46529506,0.00027397,2]
[342825649,1732160901150,-171.657385,0.00027444,2]
[342825650,1732160901185,-160.0,0.0002745,4]
[342825651,1732160901217,-161.27448362,0.0002745,5]
[342825652,1732160901250,-44344.7695284,0.000275,2]
[342825653,1732160901284,-310.01795998,0.0002751,2]
[342825654,1732160901317,-1010.16827766,0.00027531,5]
[342825655,1732160901350,-1023.41490856,0.0002755,2]
[342825656,1732160901384,-5000.0,0.00027564,30]
[342825657,1732160901417,-429.0,0.00027616,2]
[342825658,1732160901456,-1500.0,0.00027616,5]
[342825659,1732160901490,-4050.73,0.00027624,2]
[342825660,1732160901526,-2158.381781,0.00027669,2]
[342825661,1732160901560,-2633.827947,0.00027669,2]
[342825662,1732160901594,-804.41408162,0.00027671,2]
[342825663,1732160901629,-897.12,0.00027671,2]
[342825664,1732160901664,-1024.92,0.00027671,2]
[342825665,1732160901698,-1992.03,0.00027671,2]
[342825666,1732160901731,-3245.14,0.00027671,2]
[342825667,1732160901763,-158.5,0.00027699,6]
[342825668,1732160901795,-501.22233876,0.00027781,5]
[342825669,1732160901828,-1500.0,0.00027781,5]
[342825670,1732160901950,-1464.81,0.000278,30]
[342825671,1732160901984,-6565.1277579,0.00027856,4]
[342825672,1732160902017,-171.657385,0.00027894,2]
[342825673,1732160902053,-897.12,0.00027945,2]
[342825674,1732160902090,-1024.92,0.00027945,2]
[342825675,1732160902126,-1992.03,0.00027945,2]
[342825676,1732160902165,-3245.14,0.00027945,2]
[342825677,1732160902197,-31981.10449424,0.0002799,2]
[342825678,1732160902230,-500.9035279,0.00028,5]
[342825679,1732160902262,-7396.86045006,0.00028,30]
[342825680,1732160902295,-4000.0,0.00028,2]
[342825681,1732160902328,-1567.92160262,0.00028,10]
[342825682,1732160902361,-254.30349,0.00028,7]
[342825683,1732160902395,-200.0,0.00028,120]
[342825684,1732160902427,-76538.02449675,0.00028,2]
[342825685,1732160902462,-2158.381781,0.00028007,2]
[342825686,1732160902495,-2633.827947,0.00028007,2]
[342825687,1732160902528,-300.0,0.000281,2]
[342825688,1732160902560,-158.5,0.00028138,7]
[342825689,1732160902596,-897.29269288,0.00028219,2]
[342825690,1732160902631,-1025.07695227,0.00028219,2]
[342825691,1732160902665,-1992.10021585,0.00028219,2]
[342825692,1732160902703,-3245.3776933,0.00028219,2]
[342825693,1732160902736,-1023.41490856,0.00028247,2]
[342825694,1732160902771,-155.929772,0.000283,11]